[Event "Early-Titled-Tuesday-Blitz-March-05-2024"]
[Site "Chess.com"]
[Date "2024.03.05"]
[Round "3"]
[White "MaxLeto"]
[Black "goldihouse"]
[Result "0-1"]
[WhiteElo "2478"]
[BlackElo "2664"]
[TimeControl "180+1"]
[EndTime "8:31:29 PST"]
[Termination "goldihouse won on time"]

1. g4 {[%clk 0:03:00.9]} 1... Nc6 {[%clk 0:02:56.7]} 2. Bg2 {[%clk 0:03:00.7]}
2... d5 {[%clk 0:02:56.4]} 3. h3 {[%clk 0:03:00.6]} 3... e5 {[%clk 0:02:54.8]}
4. d3 {[%clk 0:02:57.7]} 4... Be6 {[%clk 0:02:47]} 5. Nc3 {[%clk 0:02:58]} 5...
Bc5 {[%clk 0:02:37.4]} 6. e4 {[%clk 0:02:57.4]} 6... Nge7 {[%clk 0:02:37.1]} 7.
Nf3 {[%clk 0:02:44.3]} 7... f6 {[%clk 0:02:30.1]} 8. Nh4 {[%clk 0:02:41.1]} 8...
O-O {[%clk 0:02:28.7]} 9. Nf5 {[%clk 0:02:41]} 9... Qd7 {[%clk 0:02:22.5]} 10.
Bd2 {[%clk 0:02:39.3]} 10... Rad8 {[%clk 0:02:22.1]} 11. Nxe7+ {[%clk
0:02:35.2]} 11... Nxe7 {[%clk 0:02:21.8]} 12. Qf3 {[%clk 0:02:32.8]} 12... c6
{[%clk 0:02:19.2]} 13. Qg3 {[%clk 0:02:25.2]} 13... Bd6 {[%clk 0:02:10.2]} 14.
O-O {[%clk 0:02:20.5]} 14... b5 {[%clk 0:02:10]} 15. a4 {[%clk 0:02:18.8]} 15...
b4 {[%clk 0:02:09.9]} 16. Ne2 {[%clk 0:02:19.4]} 16... a5 {[%clk 0:02:10.4]} 17.
b3 {[%clk 0:02:17.1]} 17... Ng6 {[%clk 0:01:44]} 18. Kh1 {[%clk 0:02:15.5]}
18... Bc7 {[%clk 0:01:28.6]} 19. Be3 {[%clk 0:01:54.3]} 19... Rf7 {[%clk
0:01:26.7]} 20. f3 {[%clk 0:01:44.2]} 20... Qc8 {[%clk 0:01:14.5]} 21. h4 {[%clk
0:01:37.4]} 21... Rfd7 {[%clk 0:01:06.8]} 22. h5 {[%clk 0:01:37.1]} 22... Nf8
{[%clk 0:01:02.5]} 23. Bh3 {[%clk 0:01:36.2]} 23... h6 {[%clk 0:01:00.7]} 24.
Bg2 {[%clk 0:01:14.1]} 24... Qb7 {[%clk 0:01:00.3]} 25. f4 {[%clk 0:01:11.1]}
25... dxe4 {[%clk 0:00:56.9]} 26. Bxe4 {[%clk 0:01:09.1]} 26... Bd5 {[%clk
0:00:57]} 27. Qf3 {[%clk 0:01:00.6]} 27... Bxe4 {[%clk 0:00:50.8]} 28. Qxe4
{[%clk 0:01:01.5]} 28... Bd6 {[%clk 0:00:45.6]} 29. f5 {[%clk 0:00:21.9]} 29...
Bc7 {[%clk 0:00:43.3]} 30. Rae1 {[%clk 0:00:20.2]} 30... Bb6 {[%clk 0:00:43.4]}
31. Ng3 {[%clk 0:00:19.4]} 31... Bxe3 {[%clk 0:00:42.4]} 32. Qxe3 {[%clk
0:00:20.3]} 32... Rd4 {[%clk 0:00:42.9]} 33. Ne4 {[%clk 0:00:20.6]} 33... Qe7
{[%clk 0:00:43.1]} 34. Re2 {[%clk 0:00:19]} 34... Nh7 {[%clk 0:00:43.3]} 35. Rg1
{[%clk 0:00:17]} 35... Qf7 {[%clk 0:00:43.7]} 36. Kh2 {[%clk 0:00:12.4]} 36...
Qd5 {[%clk 0:00:43.7]} 37. Reg2 {[%clk 0:00:05.3]} 37... Ng5 {[%clk 0:00:44]}
38. Nxg5 {[%clk 0:00:05.4]} 38... hxg5 {[%clk 0:00:44.9]} 39. Re1 {[%clk
0:00:05.6]} 39... Kh7 {[%clk 0:00:45]} 40. Rge2 {[%clk 0:00:05.6]} 40... Rxg4
{[%clk 0:00:44.9]} 41. Qa7 {[%clk 0:00:04.8]} 41... Rh4+ {[%clk 0:00:44.8]} 42.
Kg3 {[%clk 0:00:05]} 42... Qd4 {[%clk 0:00:33.2]} 43. Re4 {[%clk 0:00:04.1]}
43... Qxa7 {[%clk 0:00:32.3]} 44. Rxh4 {[%clk 0:00:02.7]} 44... gxh4+ {[%clk
0:00:33.2]} 45. Kxh4 {[%clk 0:00:01.8]} 45... Qf2+ {[%clk 0:00:32.9]} 0-1

[Event "Early-Titled-Tuesday-Blitz-March-05-2024"]
[Site "Chess.com"]
[Date "2024.03.05"]
[Round "3"]
[White "KanalSzachowy"]
[Black "AttackSparrow"]
[Result "0-1"]
[WhiteElo "2460"]
[BlackElo "2633"]
[TimeControl "180+1"]
[EndTime "8:31:29 PST"]
[Termination "AttackSparrow won by resignation"]

1. e4 {[%clk 0:03:00.5]} 1... e5 {[%clk 0:02:59.5]} 2. Nf3 {[%clk 0:02:59.8]}
2... Nc6 {[%clk 0:03:00.2]} 3. Bc4 {[%clk 0:02:59.5]} 3... Nf6 {[%clk
0:03:00.2]} 4. d4 {[%clk 0:02:57.9]} 4... exd4 {[%clk 0:02:59.1]} 5. e5 {[%clk
0:02:58.5]} 5... d5 {[%clk 0:02:58]} 6. Bb5 {[%clk 0:02:58.6]} 6... Ne4 {[%clk
0:02:58.7]} 7. Nxd4 {[%clk 0:02:57.9]} 7... Bc5 {[%clk 0:02:59]} 8. Bxc6+ {[%clk
0:02:51.4]} 8... bxc6 {[%clk 0:02:57.5]} 9. Be3 {[%clk 0:02:51.3]} 9... Ba6
{[%clk 0:02:10.5]} 10. Qg4 {[%clk 0:02:46.3]} 10... O-O {[%clk 0:02:07.7]} 11.
Nd2 {[%clk 0:02:40.3]} 11... Nxd2 {[%clk 0:02:01]} 12. Nf5 {[%clk 0:02:40.7]}
12... g6 {[%clk 0:01:57.8]} 13. Bxc5 {[%clk 0:02:39.2]} 13... Ne4 {[%clk
0:01:45.3]} 14. Be7 {[%clk 0:02:38.7]} 14... Qc8 {[%clk 0:01:42.9]} 15. Nh6+
{[%clk 0:02:13.8]} 15... Kg7 {[%clk 0:01:41.6]} 16. Bf6+ {[%clk 0:02:14.2]}
16... Nxf6 {[%clk 0:01:39.2]} 17. exf6+ {[%clk 0:02:15.1]} 17... Kxf6 {[%clk
0:01:37]} 18. Qd4+ {[%clk 0:02:13.2]} 18... Kg5 {[%clk 0:01:03.9]} 19. Qg7
{[%clk 0:01:46.3]} 19... Qe8+ {[%clk 0:00:57.4]} 20. Kd1 {[%clk 0:01:18.1]}
20... Qe2+ {[%clk 0:00:33.1]} 21. Kc1 {[%clk 0:01:15.3]} 21... f5 {[%clk
0:00:30.5]} 22. h4+ {[%clk 0:01:10.7]} 22... Kf4 {[%clk 0:00:13.4]} 23. g3+
{[%clk 0:00:48.1]} 23... Kf3 {[%clk 0:00:11.9]} 24. Qc3+ {[%clk 0:00:36.1]}
24... Kg2 {[%clk 0:00:10.4]} 25. Rd1 {[%clk 0:00:36.6]} 25... Rae8 {[%clk
0:00:08]} 26. b3 {[%clk 0:00:30.5]} 26... Qe5 {[%clk 0:00:08.3]} 27. Qxe5 {[%clk
0:00:26.7]} 27... Rxe5 {[%clk 0:00:09.2]} 28. f4 {[%clk 0:00:27.3]} 28... Re2
{[%clk 0:00:07.9]} 29. Kb2 {[%clk 0:00:21.3]} 29... Kxg3 {[%clk 0:00:08.3]} 30.
Rg1+ {[%clk 0:00:18.3]} 30... Kxf4 {[%clk 0:00:08.8]} 31. Raf1+ {[%clk
0:00:17.7]} 31... Ke5 {[%clk 0:00:08.7]} 32. Re1 {[%clk 0:00:17.7]} 32... Rxe1
{[%clk 0:00:07.4]} 33. Rxe1+ {[%clk 0:00:18.6]} 33... Kf6 {[%clk 0:00:08]} 34.
h5 {[%clk 0:00:16.6]} 34... Kg5 {[%clk 0:00:06.6]} 35. hxg6 {[%clk 0:00:15.4]}
35... hxg6 {[%clk 0:00:07.5]} 36. Rh1 {[%clk 0:00:14.5]} 36... f4 {[%clk
0:00:08]} 37. Kc3 {[%clk 0:00:11.1]} 37... f3 {[%clk 0:00:08.2]} 38. Kd2 {[%clk
0:00:11.7]} 38... f2 {[%clk 0:00:08.7]} 0-1

[Event "Early-Titled-Tuesday-Blitz-March-05-2024"]
[Site "Chess.com"]
[Date "2024.03.05"]
[Round "3"]
[White "Viktor_Poddubnyi"]
[Black "Herzog2012"]
[Result "1-0"]
[WhiteElo "2282"]
[BlackElo "2495"]
[TimeControl "180+1"]
[EndTime "8:31:30 PST"]
[Termination "Viktor_Poddubnyi won on time"]

1. e4 {[%clk 0:03:00.6]} 1... c5 {[%clk 0:02:59.4]} 2. Nf3 {[%clk 0:03:00.4]}
2... d6 {[%clk 0:02:59.6]} 3. d4 {[%clk 0:03:00.7]} 3... cxd4 {[%clk 0:03:00.5]}
4. Nxd4 {[%clk 0:03:01.6]} 4... Nf6 {[%clk 0:03:00.5]} 5. Nc3 {[%clk 0:03:02]}
5... Nc6 {[%clk 0:03:00.5]} 6. Bc4 {[%clk 0:03:01.4]} 6... Qb6 {[%clk
0:02:59.5]} 7. Ndb5 {[%clk 0:03:01]} 7... a6 {[%clk 0:02:58.7]} 8. Be3 {[%clk
0:03:01]} 8... Qa5 {[%clk 0:02:58.8]} 9. Nd4 {[%clk 0:02:57.1]} 9... e6 {[%clk
0:02:56.8]} 10. O-O {[%clk 0:02:33.9]} 10... Be7 {[%clk 0:02:55]} 11. Bb3 {[%clk
0:02:32.9]} 11... O-O {[%clk 0:02:51.9]} 12. f4 {[%clk 0:02:32]} 12... Bd7
{[%clk 0:02:14.2]} 13. f5 {[%clk 0:02:20.6]} 13... Nxd4 {[%clk 0:01:56.3]} 14.
Bxd4 {[%clk 0:02:15.6]} 14... e5 {[%clk 0:01:54.6]} 15. Be3 {[%clk 0:02:14.2]}
15... Bc6 {[%clk 0:01:50.9]} 16. Bg5 {[%clk 0:02:10.8]} 16... Rad8 {[%clk
0:01:13.3]} 17. Bxf6 {[%clk 0:02:09.2]} 17... Bxf6 {[%clk 0:01:13.2]} 18. Qf3
{[%clk 0:02:05.5]} 18... Qc5+ {[%clk 0:01:06.7]} 19. Kh1 {[%clk 0:02:03.9]}
19... b5 {[%clk 0:01:07]} 20. Rad1 {[%clk 0:01:58.1]} 20... a5 {[%clk
0:00:21.5]} 21. a4 {[%clk 0:01:57.6]} 21... bxa4 {[%clk 0:00:19.8]} 22. Nxa4
{[%clk 0:01:57.2]} 22... Qb4 {[%clk 0:00:18.6]} 23. Nc3 {[%clk 0:01:31.8]} 23...
a4 {[%clk 0:00:18.5]} 24. Bd5 {[%clk 0:01:13.4]} 24... Bb5 {[%clk 0:00:13.3]}
25. Nxb5 {[%clk 0:01:10]} 25... Qxb5 {[%clk 0:00:14.2]} 26. b3 {[%clk 0:01:04]}
26... a3 {[%clk 0:00:14]} 27. Ra1 {[%clk 0:01:02.8]} 27... Qc5 {[%clk
0:00:13.9]} 28. Qf2 {[%clk 0:00:54.4]} 28... Rc8 {[%clk 0:00:10.7]} 29. Qxc5
{[%clk 0:00:52.1]} 29... Rxc5 {[%clk 0:00:11.6]} 30. c4 {[%clk 0:00:52.4]} 30...
Rb8 {[%clk 0:00:07.7]} 31. Rxa3 {[%clk 0:00:51.1]} 31... Bg5 {[%clk 0:00:07.7]}
32. Rfa1 {[%clk 0:00:47.7]} 32... g6 {[%clk 0:00:04.1]} 33. g4 {[%clk
0:00:46.4]} 33... gxf5 {[%clk 0:00:04.3]} 34. gxf5 {[%clk 0:00:44.6]} 34... Be3
{[%clk 0:00:04.6]} 35. Kg2 {[%clk 0:00:36.3]} 35... Bd4 {[%clk 0:00:04.3]} 36.
R1a2 {[%clk 0:00:36.7]} 36... Rc7 {[%clk 0:00:03.7]} 37. Kf3 {[%clk 0:00:36.9]}
37... Kg7 {[%clk 0:00:04.1]} 38. Ke2 {[%clk 0:00:32.2]} 38... Bc5 {[%clk
0:00:04]} 39. Ra8 {[%clk 0:00:23.7]} 1-0

[Event "Early-Titled-Tuesday-Blitz-March-05-2024"]
[Site "Chess.com"]
[Date "2024.03.05"]
[Round "3"]
[White "becemix"]
[Black "sathvikadiga"]
[Result "1-0"]
[WhiteElo "2449"]
[BlackElo "2583"]
[TimeControl "180+1"]
[EndTime "8:31:31 PST"]
[Termination "becemix won by checkmate"]

1. e4 {[%clk 0:03:00.9]} 1... e6 {[%clk 0:02:59.7]} 2. d4 {[%clk 0:02:51.6]}
2... d5 {[%clk 0:03:00]} 3. exd5 {[%clk 0:02:51.1]} 3... exd5 {[%clk 0:02:59.6]}
4. c4 {[%clk 0:02:52]} 4... Nf6 {[%clk 0:02:59.5]} 5. Nc3 {[%clk 0:02:51.5]}
5... c6 {[%clk 0:02:55.5]} 6. Be2 {[%clk 0:02:48.1]} 6... Bd6 {[%clk 0:02:52.2]}
7. c5 {[%clk 0:02:47.7]} 7... Bc7 {[%clk 0:02:51.3]} 8. Bg5 {[%clk 0:02:47.7]}
8... h6 {[%clk 0:02:51.2]} 9. Be3 {[%clk 0:02:39.5]} 9... Bf5 {[%clk 0:02:48.6]}
10. h3 {[%clk 0:02:39.5]} 10... b6 {[%clk 0:02:46.5]} 11. b4 {[%clk 0:02:39.3]}
11... a5 {[%clk 0:02:44.6]} 12. a3 {[%clk 0:02:39.7]} 12... O-O {[%clk
0:02:42.2]} 13. Nf3 {[%clk 0:02:39.2]} 13... Ne4 {[%clk 0:02:42.6]} 14. Nxe4
{[%clk 0:02:35]} 14... dxe4 {[%clk 0:02:43.5]} 15. Ne5 {[%clk 0:02:31.3]} 15...
axb4 {[%clk 0:02:36.1]} 16. axb4 {[%clk 0:02:30.2]} 16... Rxa1 {[%clk
0:02:35.7]} 17. Qxa1 {[%clk 0:02:31.1]} 17... bxc5 {[%clk 0:02:23.8]} 18. dxc5
{[%clk 0:02:27.7]} 18... Qf6 {[%clk 0:02:17]} 19. Bd4 {[%clk 0:02:27.1]} 19...
Rd8 {[%clk 0:02:01.2]} 20. Bc3 {[%clk 0:02:19.9]} 20... Qg5 {[%clk 0:01:53.9]}
21. g4 {[%clk 0:01:51.2]} 21... Bxe5 {[%clk 0:01:38.4]} 22. Bxe5 {[%clk
0:01:44.9]} 22... Qd2+ {[%clk 0:01:38.1]} 23. Kf1 {[%clk 0:01:45]} 23... Be6
{[%clk 0:01:38.2]} 24. Bxg7 {[%clk 0:01:38.5]} 24... Nd7 {[%clk 0:01:15]} 25.
Qc3 {[%clk 0:01:36.6]} 25... Qf4 {[%clk 0:00:41.1]} 26. Bd4 {[%clk 0:01:23.7]}
26... Kh7 {[%clk 0:00:33.6]} 27. Be3 {[%clk 0:01:23.3]} 27... Qc7 {[%clk
0:00:32.7]} 28. Kg2 {[%clk 0:01:20.8]} 28... Nf8 {[%clk 0:00:29.1]} 29. Qf6
{[%clk 0:01:19.1]} 29... Ng6 {[%clk 0:00:21.7]} 30. h4 {[%clk 0:01:17.7]} 30...
Qe5 {[%clk 0:00:20.2]} 31. Qxd8 {[%clk 0:01:12.8]} 31... Bd5 {[%clk 0:00:15.4]}
32. Qd6 {[%clk 0:01:07.5]} 32... Qg7 {[%clk 0:00:10.6]} 33. h5 {[%clk
0:01:07.5]} 33... Ne5 {[%clk 0:00:07.7]} 34. Bxh6 {[%clk 0:01:07.3]} 34... e3+
{[%clk 0:00:06.4]} 35. f3 {[%clk 0:01:06.7]} 35... Qxg4+ {[%clk 0:00:06.5]} 36.
Kf1 {[%clk 0:01:06.6]} 36... Qg3 {[%clk 0:00:04.8]} 37. Bxe3 {[%clk 0:01:04]}
37... Bxf3 {[%clk 0:00:05.2]} 38. Bd3+ {[%clk 0:00:57.3]} 38... Kg8 {[%clk
0:00:02.8]} 39. Rg1 {[%clk 0:00:56]} 39... Bg2+ {[%clk 0:00:02.3]} 40. Rxg2
{[%clk 0:00:55.4]} 40... Qxg2+ {[%clk 0:00:03.2]} 41. Kxg2 {[%clk 0:00:55.4]}
41... Ng4 {[%clk 0:00:04.1]} 42. Qd8+ {[%clk 0:00:53.1]} 42... Kg7 {[%clk
0:00:04.7]} 43. Bd4+ {[%clk 0:00:53]} 43... f6 {[%clk 0:00:03.9]} 44. Qe7+
{[%clk 0:00:52.3]} 44... Kh6 {[%clk 0:00:04.3]} 45. Bxf6 {[%clk 0:00:50.2]}
45... Kxh5 {[%clk 0:00:03]} 46. Be2 {[%clk 0:00:47.9]} 46... Kh6 {[%clk
0:00:01.8]} 47. Qg7+ {[%clk 0:00:48.8]} 47... Kh5 {[%clk 0:00:02.1]} 48. Bxg4#
{[%clk 0:00:49.4]} 1-0

[Event "Early-Titled-Tuesday-Blitz-March-05-2024"]
[Site "Chess.com"]
[Date "2024.03.05"]
[Round "3"]
[White "ATM622"]
[Black "Hope_6"]
[Result "0-1"]
[WhiteElo "2543"]
[BlackElo "2827"]
[TimeControl "180+1"]
[EndTime "8:31:32 PST"]
[Termination "Hope_6 won by resignation"]

1. d4 {[%clk 0:03:00.9]} 1... d5 {[%clk 0:02:59.1]} 2. c4 {[%clk 0:03:00.5]}
2... e6 {[%clk 0:02:59.4]} 3. Nf3 {[%clk 0:03:00.6]} 3... Nf6 {[%clk 0:03:00.1]}
4. g3 {[%clk 0:03:00.9]} 4... Bb4+ {[%clk 0:03:00.3]} 5. Bd2 {[%clk 0:03:00.3]}
5... Be7 {[%clk 0:03:00.7]} 6. cxd5 {[%clk 0:03:00]} 6... exd5 {[%clk
0:03:00.3]} 7. Bg2 {[%clk 0:03:00.3]} 7... O-O {[%clk 0:03:00.3]} 8. O-O {[%clk
0:03:00.5]} 8... c6 {[%clk 0:03:00]} 9. Nc3 {[%clk 0:02:58.8]} 9... Bf5 {[%clk
0:02:59.4]} 10. Nh4 {[%clk 0:02:58.6]} 10... Be6 {[%clk 0:02:58.1]} 11. Qc2
{[%clk 0:02:55.9]} 11... Nbd7 {[%clk 0:02:55.2]} 12. f4 {[%clk 0:02:50]} 12...
Nb6 {[%clk 0:02:49]} 13. b3 {[%clk 0:02:36.4]} 13... Re8 {[%clk 0:02:36.5]} 14.
Nf3 {[%clk 0:02:28.2]} 14... Qc8 {[%clk 0:02:28.7]} 15. Ne5 {[%clk 0:02:17.3]}
15... Bf5 {[%clk 0:02:27]} 16. Qd1 {[%clk 0:02:16.4]} 16... Ne4 {[%clk
0:02:18.4]} 17. Nxe4 {[%clk 0:02:07.3]} 17... Bxe4 {[%clk 0:02:18.1]} 18. Bxe4
{[%clk 0:02:05.2]} 18... dxe4 {[%clk 0:02:19]} 19. Qc2 {[%clk 0:02:02.7]} 19...
Bf8 {[%clk 0:01:51.5]} 20. Ba5 {[%clk 0:01:54.6]} 20... Nd5 {[%clk 0:01:50.5]}
21. Bd2 {[%clk 0:01:50.5]} 21... f6 {[%clk 0:01:45.2]} 22. Nc4 {[%clk
0:01:47.8]} 22... Qd7 {[%clk 0:01:25]} 23. Ne3 {[%clk 0:01:38.7]} 23... Rad8
{[%clk 0:01:21.9]} 24. Rac1 {[%clk 0:01:33.2]} 24... Ba3 {[%clk 0:01:17.8]} 25.
Ra1 {[%clk 0:01:26.8]} 25... Bf8 {[%clk 0:01:13.3]} 26. Rac1 {[%clk 0:01:22.5]}
26... Qf7 {[%clk 0:01:08.7]} 27. Qc4 {[%clk 0:01:17.8]} 27... Nxe3 {[%clk
0:01:06.5]} 28. Bxe3 {[%clk 0:01:13.4]} 28... Rd5 {[%clk 0:01:05.9]} 29. a4
{[%clk 0:01:09]} 29... a6 {[%clk 0:01:03.8]} 30. b4 {[%clk 0:01:04.2]} 30...
Red8 {[%clk 0:01:02.9]} 31. Rfd1 {[%clk 0:00:56.1]} 31... f5 {[%clk 0:01:01.7]}
32. a5 {[%clk 0:00:44.6]} 32... g6 {[%clk 0:01:00.7]} 33. Kf2 {[%clk 0:00:40.3]}
33... Bg7 {[%clk 0:00:59.8]} 34. Rd2 {[%clk 0:00:38.6]} 34... Rb5 {[%clk
0:00:57.2]} 35. Qxf7+ {[%clk 0:00:30]} 35... Kxf7 {[%clk 0:00:58.1]} 36. Rc4
{[%clk 0:00:28.5]} 36... Ke6 {[%clk 0:00:58.1]} 37. Rc5 {[%clk 0:00:13.8]} 37...
Rxb4 {[%clk 0:00:50.7]} 38. d5+ {[%clk 0:00:14.1]} 38... Rxd5 {[%clk 0:00:49.3]}
39. Rdxd5 {[%clk 0:00:10.5]} 39... cxd5 {[%clk 0:00:50.2]} 40. Rc7 {[%clk
0:00:11]} 40... Bf6 {[%clk 0:00:46.5]} 41. Bc5 {[%clk 0:00:10.3]} 41... Rc4
{[%clk 0:00:43.5]} 42. e3 {[%clk 0:00:06.3]} 42... d4 {[%clk 0:00:43.3]} 43. Ke2
{[%clk 0:00:02.4]} 43... dxe3 {[%clk 0:00:38.5]} 44. Kxe3 {[%clk 0:00:02.4]}
44... Bd4+ {[%clk 0:00:32.7]} 45. Bxd4 {[%clk 0:00:01.3]} 45... Rxc7 {[%clk
0:00:33.6]} 0-1

[Event "Early-Titled-Tuesday-Blitz-March-05-2024"]
[Site "Chess.com"]
[Date "2024.03.05"]
[Round "3"]
[White "Alonmindlin"]
[Black "stollenmonster"]
[Result "1/2-1/2"]
[WhiteElo "2667"]
[BlackElo "2897"]
[TimeControl "180+1"]
[EndTime "8:31:33 PST"]
[Termination "Game drawn - insufficient material"]

1. d4 {[%clk 0:03:00.9]} 1... Nf6 {[%clk 0:02:59.8]} 2. c4 {[%clk 0:03:01]} 2...
e6 {[%clk 0:03:00.1]} 3. Nf3 {[%clk 0:03:01.3]} 3... d5 {[%clk 0:03:00.8]} 4.
Nc3 {[%clk 0:03:01.5]} 4... Ne4 {[%clk 0:03:01.2]} 5. Qc2 {[%clk 0:03:01.1]}
5... f5 {[%clk 0:03:00.9]} 6. g3 {[%clk 0:03:00.3]} 6... c6 {[%clk 0:03:01]} 7.
Bg2 {[%clk 0:03:00.7]} 7... Be7 {[%clk 0:03:01.7]} 8. O-O {[%clk 0:03:01.1]}
8... O-O {[%clk 0:03:02.4]} 9. Rb1 {[%clk 0:03:01.8]} 9... Bd7 {[%clk
0:03:02.7]} 10. b4 {[%clk 0:03:01.3]} 10... Be8 {[%clk 0:03:03.1]} 11. b5 {[%clk
0:03:01.5]} 11... cxb5 {[%clk 0:02:55.2]} 12. Nxb5 {[%clk 0:02:49.7]} 12... Nc6
{[%clk 0:02:54.6]} 13. cxd5 {[%clk 0:02:46.9]} 13... exd5 {[%clk 0:02:54.4]} 14.
Bf4 {[%clk 0:02:41.7]} 14... Rc8 {[%clk 0:02:52]} 15. Qb2 {[%clk 0:02:40.7]}
15... Nb4 {[%clk 0:02:24.7]} 16. Nd6 {[%clk 0:02:26.5]} 16... Bxd6 {[%clk
0:02:02.2]} 17. Bxd6 {[%clk 0:02:26]} 17... Qxd6 {[%clk 0:02:03.1]} 18. Qxb4
{[%clk 0:02:26.2]} 18... Qxb4 {[%clk 0:02:03.5]} 19. Rxb4 {[%clk 0:02:27.1]}
19... b6 {[%clk 0:02:03.8]} 20. Rb2 {[%clk 0:02:18.5]} 20... Rc3 {[%clk
0:01:54.8]} 21. Ne5 {[%clk 0:02:11.3]} 21... Ba4 {[%clk 0:01:52]} 22. Rb4 {[%clk
0:02:02.3]} 22... b5 {[%clk 0:01:44]} 23. Nd7 {[%clk 0:02:02.2]} 23... Rfc8
{[%clk 0:01:41.7]} 24. Nc5 {[%clk 0:02:01]} 24... a5 {[%clk 0:01:30.3]} 25. Rb2
{[%clk 0:01:57.7]} 25... Nxc5 {[%clk 0:01:29.4]} 26. Bxd5+ {[%clk 0:01:57.8]}
26... Kf8 {[%clk 0:01:29.8]} 27. dxc5 {[%clk 0:01:58.4]} 27... R8xc5 {[%clk
0:01:30.5]} 28. Bb3 {[%clk 0:01:53.2]} 28... Bxb3 {[%clk 0:01:30.5]} 29. axb3
{[%clk 0:01:54.1]} 29... Rc1 {[%clk 0:01:22.3]} 30. Ra2 {[%clk 0:01:41.9]} 30...
Rxf1+ {[%clk 0:01:21]} 31. Kxf1 {[%clk 0:01:42.8]} 31... b4 {[%clk 0:01:21.4]}
32. Kg2 {[%clk 0:01:27.9]} 32... Ke7 {[%clk 0:01:21.9]} 33. Kf3 {[%clk
0:01:27.9]} 33... Kd6 {[%clk 0:01:22.6]} 34. Ke3 {[%clk 0:01:27.6]} 34... Kd5
{[%clk 0:01:13.8]} 35. Kd3 {[%clk 0:01:23.8]} 35... Rc3+ {[%clk 0:01:12.3]} 36.
Kd2 {[%clk 0:01:24.1]} 36... Rxb3 {[%clk 0:01:12.6]} 37. Rxa5+ {[%clk
0:01:23.9]} 37... Kc4 {[%clk 0:01:12.9]} 38. Rxf5 {[%clk 0:01:20.6]} 38... Rb2+
{[%clk 0:01:13]} 39. Ke3 {[%clk 0:01:21.1]} 39... b3 {[%clk 0:01:04.2]} 40. Rf4+
{[%clk 0:01:21.3]} 40... Kc3 {[%clk 0:00:59.9]} 41. Rf7 {[%clk 0:01:21.5]} 41...
Rc2 {[%clk 0:01:00.3]} 42. Rxg7 {[%clk 0:01:20.6]} 42... b2 {[%clk 0:00:53.9]}
43. Rxh7 {[%clk 0:01:19.1]} 43... b1=Q {[%clk 0:00:35.5]} 44. Rc7+ {[%clk
0:01:18.9]} 44... Kb2 {[%clk 0:00:36.2]} 45. Rb7+ {[%clk 0:01:19.6]} 45... Kc1
{[%clk 0:00:36.4]} 46. Rxb1+ {[%clk 0:01:20.5]} 46... Kxb1 {[%clk 0:00:37.3]}
47. f4 {[%clk 0:01:20.5]} 47... Kb2 {[%clk 0:00:37.4]} 48. f5 {[%clk 0:01:12.1]}
48... Kb3 {[%clk 0:00:37.3]} 49. Kd4 {[%clk 0:01:10.8]} 49... Rd2+ {[%clk
0:00:29.7]} 50. Ke3 {[%clk 0:01:04.3]} 50... Rc2 {[%clk 0:00:30.1]} 51. Kf4
{[%clk 0:01:02.6]} 51... Kc4 {[%clk 0:00:27.6]} 52. e4 {[%clk 0:00:53.4]} 52...
Kd4 {[%clk 0:00:27]} 53. h4 {[%clk 0:00:52.1]} 53... Rf2+ {[%clk 0:00:27.2]} 54.
Kg5 {[%clk 0:00:52.6]} 54... Kxe4 {[%clk 0:00:27.2]} 55. g4 {[%clk 0:00:52.4]}
55... Ke5 {[%clk 0:00:27.4]} 56. Kg6 {[%clk 0:00:51.7]} 56... Rf4 {[%clk
0:00:25.7]} 57. g5 {[%clk 0:00:52.1]} 57... Rxf5 {[%clk 0:00:25.3]} 58. h5
{[%clk 0:00:52.8]} 58... Kf4 {[%clk 0:00:24.4]} 59. h6 {[%clk 0:00:52]} 59...
Rxg5+ {[%clk 0:00:25]} 60. Kf7 {[%clk 0:00:52.6]} 60... Rh5 {[%clk 0:00:24.1]}
61. Kg6 {[%clk 0:00:52]} 61... Rg5+ {[%clk 0:00:22.7]} 62. Kf6 {[%clk
0:00:51.9]} 62... Rh5 {[%clk 0:00:19.8]} 63. Kg6 {[%clk 0:00:52.4]} 63... Rxh6+
{[%clk 0:00:17.2]} 64. Kxh6 {[%clk 0:00:52.7]} 1/2-1/2